Workbook

Sheet IrrigationEnergy
B3: KSU-Irrigation Energy Costs
B5: A spreadsheet to compare the costs of irrigation energy options
L8: Version- 5.23.2016
B28: INSTRUCTIONS FOR THE USER:
B29: Be sure to "Enable Content" and "Enable Macros" for the spreadsheet to function correctly.
B30: In the spreadsheet all blue numbers are inputs and all black numbers are calculated from these inputs. Several of the input cells (i.e., blue number) have a red diamond in the upper right hand corner of the cell. By moving your mouse cursor over this diamond, a brief description of the input will be displayed on the screen.
B35: FOR MORE INFORMATION:
B36: This spreadsheet is based on the publication "Developing a Spreadsheet Template for Comparing Irrigation Energy Costs" (AF-161) by David A. Pacey and Freddie R. Lamm. In addition, K-State Farm Management Guide crop budgets and other useful information is available via the K-State Agricultural Economics website (www.agmanager.info).
B40: With Questions contact:
B41: Terry Griffin
B42: Agricultural Economist
B43: Department of Agricultural Economics
B44: Kansas State University
B45: twgriffin@k-state.edu
B46: 785-532-3527
B48: ACKNOWLEDGEMENTS:
B49: This spreadsheet was originally developed by:
B50: Kevin C. Dhuyvetter, Ph.D. | H50: Troy Dumler
B51: Former Extension Agricultural Economist | H51: Former Extension Agricultural Economist
B52: Department of Agricultural Economics | H52: Department of Agricultural Economics
B53: Kansas State University | H53: Kansas State University
B54: Copyright 2016 AgManager.info, K-State Department of Agricultural Economics

Sheet Irr energy costs
B2: IRRIGATION ENERGY COST COMPARISON
B4: Compares energy costs of irrigation pumping with different fuels at various prices and levels of
B5: performance. % NPPPC is percent of Nebraska Pumping Plant Performance Criteria.
B7: -INPUT------ | M7: Nebraska Pumping Plant Performance Criteria*
C8: Acres | E8: 1 | F8: Electric: | H8: 0.08 | I8: $/kWh | J8: 90 | K8: % NPPPC
C9: Inches Applied | E9: 1 | F9: Nat. Gas: | H9: 6 | I9: $/mcf | J9: 90 | K9: % NPPPC | M9: 0.885 | N9: whp-hr/kWh Electricity
C10: Feet Lift | E10: 300 | F10: Diesel: | H10: 1.1 | I10: $/gal | J10: 90 | K10: % NPPPC | M10: 61.7 | N10: whp-hr/mcf Natural Gas
C11: PSI Pressure | E11: 20 | F11: Propane: | H11: 0.9 | I11: $/gal | J11: 90 | K11: % NPPPC | M11: 12.5 | N11: whp-hr/gal Diesel
B12: -OUTPUT----- | M12: 6.89 | N12: whp-hr/gal Propane
C13: Energy | E13: Energy | F13: Energy | H13: ----- Cost as percent of: ----- | M13: * These factors represent what a well-designed and maintained irrigation pumping plant should be capable of doing (i.e., work done per unit of fuel) based on the Nebraska Pumping Plant Performance Criteria (NPPPC).
C14: Source | E14: Cost ($) | F14: Use | H14: Elec. | I14: Nat. Gas | J14: Diesel | K14: Propane
B16: =LEFT(C16,4)&"-"&FIXED(H8,3,TRUE)&" "&I8 -> Elec-0.080 $/kWh | C16: Electricity | E16: =M$22*H8*E$8*(E$10+M$23*E$11)*E$9/(M9*J8) -> 3.97793145 | F16: =E16/H8 -> 49.72414313 | G16: kWh | H16: =E16/E$16 -> 1 | I16: =E16/E$17 -> 0.929566855 | J16: =E16/E$18 -> 1.027221366 | K16: =E16/E$19 -> 0.6920276208
B17: =LEFT(C17,3)&" "&RIGHT(C17,3)&"-"&FIXED(H9,2,TRUE)&" "&I9 -> Nat Gas-6.00 $/mcf | C17: Natural Gas | E17: =M$22*H9*E$8*(E$10+M$23*E$11)*E$9/(M10*J9) -> 4.279338736 | F17: =E17/H9 -> 0.7132231226 | G17: mcf | H17: =E17/E$16 -> 1.075769854 | I17: =E17/E$17 -> 1 | J17: =E17/E$18 -> 1.105053779 | K17: =E17/E$19 -> 0.7444624527
B18: =LEFT(C18,6)&"-"&FIXED(H10,2,TRUE)&" "&I10 -> Diesel-1.10 $/gal | C18: Diesel | E18: =M$22*H10*E$8*(E$10+M$23*E$11)*E$9/(M11*J10) -> 3.872516267 | F18: =E18/H10 -> 3.520469333 | G18: gal | H18: =E18/E$16 -> 0.9735 | I18: =E18/E$17 -> 0.9049333333 | J18: =E18/E$18 -> 1 | K18: =E18/E$19 -> 0.6736888889
B19: =LEFT(C19,4)&"-"&FIXED(H11,2,TRUE)&" "&I11 -> Prop-0.90 $/gal | C19: Propane | E19: =M$22*H11*E$8*(E$10+M$23*E$11)*E$9/(M12*J11) -> 5.748226415 | F19: =E19/H11 -> 6.386918239 | G19: gal | H19: =E19/E$16 -> 1.445029028 | I19: =E19/E$17 -> 1.343251089 | J19: =E19/E$18 -> 1.484364692 | K19: =E19/E$19 -> 1
B22: ENERGY PUMPING COST/ACRE WITH ELECTRICITY | M22: =(M24*M25*M26)/(M27*M28*M29) -> 11.44 | N22: conversion factor
D23: Pressure (PSI) | M23: 2.31 | N23: TDH/lb of psi
D24: 5 | E24: =D24+10 -> 15 | F24: 25 | G24: 35 | H24: 45 | I24: 55 | J24: 65 | M24: 43560 | N24: square feet per acre
C25: $/kWh | D25: -------- Energy Cost ($/Acre) -------- | M25: 62.4 | N25: pounds/cubic foot water
C26: =C28-0.02 -> 0.05 | D26: =$M$22*$C26*($E$10+$M$23*D$24)*$E$9/($M$9*$J$8) -> 2.237370998 | E26: 2.40326177 | F26: 2.569152542 | G26: 2.735043315 | H26: 2.900934087 | I26: 3.066824859 | J26: 3.232715631 | M26: 100 | N26: percent
C27: =C28-0.01 -> 0.06 | D27: 2.684845198 | E27: 2.883914124 | F27: 3.082983051 | G27: 3.282051977 | H27: 3.481120904 | I27: 3.680189831 | J27: 3.879258757 | M27: 12 | N27: inch/foot
C28: =C29-0.01 -> 0.07 | D28: 3.132319397 | E28: 3.364566478 | F28: 3.596813559 | G28: 3.82906064 | H28: 4.061307721 | I28: 4.293554802 | J28: 4.525801883 | M28: 33000 | N28: foot pound/minute-hp
C29: =H8 -> 0.08 | D29: 3.579793597 | E29: 3.845218832 | F29: 4.110644068 | G29: 4.376069303 | H29: 4.641494539 | I29: 4.906919774 | J29: 5.172345009 | M29: 60 | N29: minutes/hour
C30: =C28+0.02 -> 0.09 | D30: 4.027267797 | E30: 4.325871186 | F30: 4.624474576 | G30: 4.923077966 | H30: 5.221681356 | I30: 5.520284746 | J30: 5.818888136
C31: =C28+0.03 -> 0.1 | D31: 4.474741996 | E31: 4.80652354 | F31: 5.138305085 | G31: 5.470086629 | H31: 5.801868173 | I31: 6.133649718 | J31: 6.465431262
C32: =C28+0.04 -> 0.11 | D32: 4.922216196 | E32: 5.287175895 | F32: 5.652135593 | G32: 6.017095292 | H32: 6.382054991 | I32: 6.747014689 | J32: 7.111974388
B35: ENERGY PUMPING COST/ACRE WITH NATURAL GAS
D36: Pressure (PSI)
D37: =D$24 -> 5 | E37: =D37+10 -> 15 | F37: 25 | G37: 35 | H37: 45 | I37: 55 | J37: 65
C38: $/mcf | D38: -------- Energy Cost ($/Acre) --------
C39: =C41-0.5 -> 5.25 | D39: =$M$22*$C39*($E$10+$M$23*D$37)*$E$9/($M$10*$J$9) -> 3.369654781 | E39: 3.61949919 | F39: 3.869343598 | G39: 4.119188006 | H39: 4.369032415 | I39: 4.618876823 | J39: 4.868721232
C40: =C41-0.25 -> 5.5 | D40: 3.530114533 | E40: 3.791856294 | F40: 4.053598055 | G40: 4.315339816 | H40: 4.577081578 | I40: 4.838823339 | J40: 5.1005651
C41: =C42-0.25 -> 5.75 | D41: 3.690574284 | E41: 3.964213398 | F41: 4.237852512 | G41: 4.511491626 | H41: 4.78513074 | I41: 5.058769854 | J41: 5.332408968
C42: =H9 -> 6 | D42: 3.851034036 | E42: 4.136570502 | F42: 4.422106969 | G42: 4.707643436 | H42: 4.993179903 | I42: 5.27871637 | J42: 5.564252836
C43: =C41+0.5 -> 6.25 | D43: 4.011493787 | E43: 4.308927607 | F43: 4.606361426 | G43: 4.903795246 | H43: 5.201229065 | I43: 5.498662885 | J43: 5.796096704
C44: =C41+0.75 -> 6.5 | D44: 4.171953539 | E44: 4.481284711 | F44: 4.790615883 | G44: 5.099947056 | H44: 5.409278228 | I44: 5.7186094 | J44: 6.027940573
C45: =C41+1 -> 6.75 | D45: 4.33241329 | E45: 4.653641815 | F45: 4.97487034 | G45: 5.296098865 | H45: 5.617327391 | I45: 5.938555916 | J45: 6.259784441
B48: ENERGY PUMPING COST/ACRE WITH DIESEL
D49: Pressure (PSI)
D50: =D$24 -> 5 | E50: =D50+10 -> 15 | F50: 25 | G50: 35 | H50: 45 | I50: 55 | J50: 65
C51: $/gal | D51: -------- Energy Cost ($/Acre) --------
C52: =C54-0.3 -> 0.65 | D52: =$M$22*$C52*($E$10+$M$23*D$50)*$E$9/($M$11*$J$10) -> 2.059276267 | E52: 2.211962133 | F52: 2.364648 | G52: 2.517333867 | H52: 2.670019733 | I52: 2.8227056 | J52: 2.975391467
C53: =C54-0.15 -> 0.8 | D53: 2.534493867 | E53: 2.722414933 | F53: 2.910336 | G53: 3.098257067 | H53: 3.286178133 | I53: 3.4740992 | J53: 3.662020267
C54: =C55-0.15 -> 0.95 | D54: 3.009711467 | E54: 3.232867733 | F54: 3.456024 | G54: 3.679180267 | H54: 3.902336533 | I54: 4.1254928 | J54: 4.348649067
C55: =H10 -> 1.1 | D55: 3.484929067 | E55: 3.743320533 | F55: 4.001712 | G55: 4.260103467 | H55: 4.518494933 | I55: 4.7768864 | J55: 5.035277867
C56: =C54+0.3 -> 1.25 | D56: 3.960146667 | E56: 4.253773333 | F56: 4.5474 | G56: 4.841026667 | H56: 5.134653333 | I56: 5.42828 | J56: 5.721906667
C57: =C54+0.45 -> 1.4 | D57: 4.435364267 | E57: 4.764226133 | F57: 5.093088 | G57: 5.421949867 | H57: 5.750811733 | I57: 6.0796736 | J57: 6.408535467
C58: =C54+0.6 -> 1.55 | D58: 4.910581867 | E58: 5.274678933 | F58: 5.638776 | G58: 6.002873067 | H58: 6.366970133 | I58: 6.7310672 | J58: 7.095164267
B61: ENERGY PUMPING COST/ACRE WITH PROPANE
D62: Pressure (PSI)
D63: =D$24 -> 5 | E63: =D63+10 -> 15 | F63: 25 | G63: 35 | H63: 45 | I63: 55 | J63: 65
C64: $/gal | D64: -------- Energy Cost ($/Acre) --------
C65: =C67-0.2 -> 0.6 | D65: =$M$22*$C65*($E$10+$M$23*D$63)*$E$9/($M$12*$J$11) -> 3.448603774 | E65: 3.704301887 | F65: 3.96 | G65: 4.215698113 | H65: 4.471396226 | I65: 4.72709434 | J65: 4.982792453
C66: =C67-0.1 -> 0.7 | D66: 4.023371069 | E66: 4.321685535 | F66: 4.62 | G66: 4.918314465 | H66: 5.216628931 | I66: 5.514943396 | J66: 5.813257862
C67: =C68-0.1 -> 0.8 | D67: 4.598138365 | E67: 4.939069182 | F67: 5.28 | G67: 5.620930818 | H67: 5.961861635 | I67: 6.302792453 | J67: 6.64372327
C68: =H11 -> 0.9 | D68: 5.17290566 | E68: 5.55645283 | F68: 5.94 | G68: 6.32354717 | H68: 6.70709434 | I68: 7.090641509 | J68: 7.474188679
C69: =C67+0.2 -> 1 | D69: 5.747672956 | E69: 6.173836478 | F69: 6.6 | G69: 7.026163522 | H69: 7.452327044 | I69: 7.878490566 | J69: 8.304654088
C70: =C67+0.3 -> 1.1 | D70: 6.322440252 | E70: 6.791220126 | F70: 7.26 | G70: 7.728779874 | H70: 8.197559748 | I70: 8.666339623 | J70: 9.135119497
C71: =C67+0.4 -> 1.2 | D71: 6.897207547 | E71: 7.408603774 | F71: 7.92 | G71: 8.431396226 | H71: 8.942792453 | I71: 9.454188679 | J71: 9.965584906
